bitfinex/quotes_ETHUSD_20250916
["timestamp","ask_amount","ask_price","bid_price","bid_amount"]
[1758038204090,0.12528854,4472.8,4472.7,21.86498599]
[1758038204751,0.12528854,4472.8,4472.7,17.52558599]
[1758038204959,0.12528854,4472.8,4472.7,22.30428599]
[1758038205569,0.01,4475.9,4472.8,3.792]
[1758038205808,0.65137579,4475.8,4473.7,3.792]
[1758038205957,0.01,4475.9,4474.0,0.792]
[1758038205958,0.65137579,4475.7,4474.0,0.792]
[1758038206159,0.01,4475.9,4474.5,14.5]
[1758038206160,0.65137579,4475.6,4474.5,14.5]
[1758038206377,0.65137579,4475.5,4474.5,14.5]
[1758038206579,0.3085,4474.6,4474.5,14.5]
[1758038206794,0.3085,4474.6,4474.5,3.87]
[1758038207094,0.2087118,4474.8,4474.5,3.87]
[1758038207261,0.4424,4475.1,4474.5,3.87]
[1758038207604,0.20857468,4475.0,4474.5,3.87]
[1758038207893,2.54333663,4474.6,4474.5,3.87]
[1758038208207,3.19351131,4474.6,4474.5,3.87]
[1758038209007,3.78018537,4474.6,4474.5,3.87]
[1758038209653,1.54534874,4474.6,4472.7,6.3632]
[1758038209994,1.54534874,4474.6,4473.8,1.718]
[1758038209995,2.3463863,4473.9,4473.8,1.718]
[1758038210199,3.30583504,4473.9,4473.8,3.964]
[1758038210584,3.78133504,4473.9,4473.8,3.964]
[1758038210982,3.78133504,4473.9,4473.1,0.01]
[1758038210983,1.54614874,4473.9,4473.1,0.01]
[1758038211298,2.23553608,4473.2,4473.1,3.515]
[1758038211493,3.67048482,4473.2,4473.1,3.5158]
[1758038211696,3.19498482,4473.2,4473.1,3.5158]
[1758038212984,3.67048482,4473.2,4473.1,3.5158]
[1758038214267,3.46193608,4473.2,4473.1,3.5158]
[1758038214468,3.67064645,4473.2,4473.1,3.5158]
[1758038215239,4.67064645,4473.2,4473.1,3.5158]
[1758038216276,2.43511037,4473.2,4472.1,0.01]
[1758038216491,2.23598595,4472.3,4472.2,3.87]
[1758038216674,3.18399632,4472.3,4472.2,3.87]
[1758038217506,3.30919917,4472.3,4472.2,3.87]
[1758038217712,3.30919917,4472.3,4472.1,0.01]
[1758038217713,2.23603595,4472.2,4472.1,0.01]
[1758038217896,3.05464917,4472.2,4472.1,0.01]
[1758038218103,3.79394917,4472.2,4472.1,0.01]
[1758038218297,3.79396872,4472.2,4472.1,0.01]
[1758038219653,2.87096872,4472.2,4472.1,0.01]
[1758038219813,2.53703595,4472.2,4472.1,0.01]
[1758038221111,2.23603595,4472.2,4472.1,0.01]
[1758038221459,1.0,4473.2,4472.1,0.5208]
[1758038221613,0.1112,4472.8,4472.2,3.866]
[1758038221811,1.0,4472.2,4472.1,0.0108]
[1758038222050,3.23603595,4472.2,4472.1,3.8818]
[1758038222243,3.99943595,4472.2,4472.1,3.8818]
[1758038223449,1.0,4472.2,4472.1,3.8818]
[1758038223818,0.9992,4472.2,4472.1,3.8818]
[1758038224619,0.9992,4472.2,4472.1,3.9138]
[1758038224818,3.23523595,4472.2,4472.1,3.8818]
[1758038225269,3.52813595,4472.2,4472.1,0.0108]
[1758038225425,3.23523595,4472.2,4472.1,3.8828]
[1758038225634,3.99863595,4472.2,4472.1,0.0108]
[1758038225931,3.99863595,4472.2,4472.1,3.8808]
[1758038227099,3.99863595,4472.2,4472.1,0.0108]
[1758038227296,4.47903595,4472.2,4472.1,0.0108]
[1758038227982,3.23523595,4472.2,4472.1,0.0108]
[1758038229416,0.9992,4472.2,4472.1,0.0108]
[1758038229568,3.23523595,4472.2,4472.1,0.0108]
[1758038229768,3.23523595,4472.2,4472.1,0.0118]
[1758038230122,3.99863595,4472.2,4472.1,3.8808]
[1758038230334,3.99863595,4472.2,4472.1,0.0118]
[1758038230817,3.23523595,4472.2,4472.1,0.0118]
[1758038231180,3.99863595,4472.2,4472.1,0.0118]
[1758038231866,3.52813595,4472.2,4472.1,0.0118]
[1758038232101,3.99863595,4472.2,4472.1,0.0118]
[1758038232267,3.52813595,4472.2,4472.1,0.0118]
[1758038232470,3.99863595,4472.2,4472.1,0.0118]
[1758038236118,3.52813595,4472.2,4472.1,0.0118]
[1758038236305,3.99863595,4472.2,4472.1,0.0118]
[1758038236506,3.23523595,4472.2,4472.1,0.0118]
[1758038236725,4.52813595,4472.2,4472.1,0.0118]
[1758038237129,4.23523595,4472.2,4472.1,0.0118]
[1758038237531,4.52813595,4472.2,4472.1,0.0118]
[1758038237710,4.99863595,4472.2,4472.1,0.0118]
[1758038238330,4.56958468,4472.2,4472.1,0.0118]
[1758038238630,4.23523595,4472.2,4472.1,0.0118]
[1758038238806,4.52813595,4472.2,4472.1,0.0118]
[1758038239012,4.99863595,4472.2,4472.1,0.0118]
[1758038239207,6.05677287,4472.2,4472.1,0.0118]
[1758038239410,5.58627287,4472.2,4472.1,0.0118]
[1758038239608,5.29337287,4472.2,4472.1,0.0118]
[1758038240013,2.93183275,4472.2,4472.1,0.0118]
[1758038240208,2.20837363,4472.2,4472.1,0.5228]
[1758038240609,1.9992,4472.2,4472.1,0.5228]
[1758038240936,4.23523595,4472.2,4472.1,0.0118]
[1758038242220,4.86318148,4472.2,4472.1,0.0118]
[1758038242428,5.33368148,4472.2,4472.1,0.0118]
[1758038242612,6.57104584,4472.2,4472.1,0.0118]
[1758038242816,6.09064584,4472.2,4472.1,0.0118]
[1758038243729,6.57104584,4472.2,4472.1,0.0118]
[1758038244746,6.09064584,4472.2,4472.1,0.0118]
[1758038244948,6.57284584,4472.2,4472.1,0.0118]
[1758038245117,7.05565166,4472.2,4472.1,0.0118]
[1758038245345,6.57345166,4472.2,4472.1,0.0118]
[1758038245516,1.9992,4472.2,4472.1,3.899]
[1758038245764,4.23523595,4472.2,4472.1,4.3704]
[1758038246331,1.9992,4472.2,4472.1,0.5154]
[1758038246532,4.23523595,4472.2,4472.1,4.3774]
[1758038246938,4.23523595,4472.2,4472.1,3.8738]
[1758038247226,4.23523595,4472.2,4472.1,3.8718]
[1758038247633,4.44474055,4472.2,4472.1,3.8718]
[1758038247840,4.86045073,4472.2,4472.1,3.8718]
[1758038248029,6.03128948,4472.2,4472.1,0.0118]
[1758038248269,5.82178024,4472.2,4472.1,0.0118]
[1758038248564,6.1782747,4472.2,4472.1,0.0118]
[1758038248969,6.1802747,4472.2,4472.1,0.0118]
[1758038249173,6.1794747,4472.2,4472.1,0.0118]
[1758038249366,4.4459729,4472.2,4472.1,0.0118]
[1758038249726,4.98763595,4472.2,4472.1,0.0118]
[1758038249959,4.52643595,4472.2,4472.1,0.0118]
[1758038250975,4.23643595,4472.2,4472.1,0.0118]
[1758038251461,4.98763595,4472.2,4472.1,0.0118]
[1758038251624,5.70999322,4472.2,4472.1,0.0118]
[1758038251832,4.23643595,4472.2,4472.1,0.0118]
[1758038253464,4.52643595,4472.2,4472.1,0.0118]
[1758038253638,4.86165286,4472.2,4472.1,0.0118]
[1758038253838,5.32285286,4472.2,4472.1,0.0118]
[1758038256032,5.32290054,4472.2,4472.1,0.0118]
[1758038256656,5.85014465,4472.2,4472.1,0.0118]
[1758038256930,2.23608595,4472.1,4471.1,0.011]
[1758038257129,12.23208281,4472.2,4469.4,0.4714]
[1758038257130,16.054144,4471.2,4469.4,0.4714]
[1758038257439,2.52703637,4470.2,4469.2,1.719]
[1758038257646,3.33874157,4470.2,4469.5,1.23]
[1758038257844,3.79994157,4470.2,4469.5,1.23]
[1758038259031,4.28214157,4470.2,4469.2,1.719]
[1758038259571,4.28214157,4470.2,4469.3,1.382]
[1758038259767,4.76360506,4470.2,4469.2,1.719]
[1758038259936,7.28140506,4470.2,4469.2,1.719]
[1758038260133,12.41060506,4470.2,4469.2,1.719]
[1758038260337,11.13640506,4470.2,4469.2,2.1904]
[1758038261270,11.13714157,4470.2,4469.2,2.1904]
[1758038261459,11.13714157,4470.2,4469.2,1.719]
[1758038261855,11.61795411,4470.2,4470.1,1e-08]
[1758038263474,12.40995411,4470.2,4470.1,1e-08]
[1758038263774,12.28421471,4470.2,4470.1,1e-08]
[1758038263959,12.40924247,4470.2,4470.1,1e-08]
[1758038264567,12.40917711,4470.2,4470.1,1e-08]
[1758038266582,12.40769738,4470.2,4470.1,1e-08]
[1758038266760,12.34469738,4470.2,4470.1,1e-08]
[1758038267083,11.85849738,4470.2,4470.1,1e-08]
[1758038267283,11.39729738,4470.2,4470.1,0.00080001]
[1758038267472,11.85849738,4470.2,4470.1,0.00080001]
[1758038267986,10.45972244,4470.2,4470.1,0.00080001]
[1758038268187,10.2516365,4470.2,4470.1,0.00080001]
[1758038268583,10.2516365,4470.2,4470.1,0.00180001]
[1758038269144,10.45961925,4470.2,4470.1,0.00180001]
[1758038269348,10.45962445,4470.2,4470.1,0.00180001]
[1758038269549,10.2506365,4470.2,4470.1,0.00180001]
[1758038271586,9.7894365,4470.2,4470.1,0.00180001]
[1758038271787,5.23703637,4470.2,4470.1,0.00180001]
[1758038271989,5.23703637,4470.2,4470.1,0.47320001]
[1758038272290,5.98823637,4470.2,4470.1,0.00180001]
[1758038272648,6.80340565,4470.2,4470.1,0.00180001]
[1758038272850,9.02136446,4470.2,4470.1,0.00180001]
[1758038273249,8.07796446,4470.2,4470.1,0.00180001]
[1758038273450,8.53916446,4470.2,4470.1,0.00180001]
[1758038274089,11.92396446,4470.2,4470.1,0.00180001]
[1758038274287,11.92316446,4470.2,4470.1,0.00180001]
[1758038274456,12.38436446,4470.2,4470.1,0.00180001]
[1758038276191,13.17636446,4470.2,4470.1,0.00180001]
[1758038276393,14.13385017,4470.2,4470.1,0.00180001]
[1758038277894,14.34239922,4470.2,4470.1,0.00180001]
[1758038278390,14.34239922,4470.2,4469.6,0.001]
[1758038278391,5.34828641,4470.1,4469.6,0.001]
[1758038278696,21.29063061,4469.7,4469.6,0.001]
[1758038278895,26.45613465,4469.7,4469.6,0.001]
[1758038279232,26.92523465,4469.7,4469.6,0.001]
[1758038279378,28.16923465,4469.7,4469.6,0.001]
[1758038279689,29.93519346,4469.7,4469.6,0.001]
[1758038280395,26.09519346,4469.7,4469.6,0.001]
[1758038280600,29.93419346,4469.7,4469.6,0.001]
[1758038280801,30.38619346,4469.7,4469.6,0.001]
[1758038281100,29.93419346,4469.7,4469.6,0.001]
[1758038281479,30.38619346,4469.7,4469.6,0.001]
[1758038281879,29.93419346,4469.7,4469.6,0.001]
[1758038282400,30.53718304,4469.7,4469.6,0.001]
[1758038282597,29.93419346,4469.7,4469.6,0.001]
[1758038282772,29.93448598,4469.7,4469.6,0.001]
[1758038282976,30.53747556,4469.7,4469.6,0.001]
[1758038283383,29.93448598,4469.7,4469.6,0.001]
[1758038283781,13.88114198,4469.7,4469.6,0.001]
[1758038283983,9.57304198,4469.7,4469.6,0.001]
[1758038284297,5.34853667,4469.6,4469.1,0.4827]
[1758038284475,2.34873691,4469.2,4469.1,0.0902]
[1758038284673,5.89054776,4469.2,4469.1,0.0902]
[1758038285097,5.89054776,4469.2,4469.1,0.6989]
[1758038285299,5.89054776,4469.2,4469.1,0.6157]
[1758038285700,2.77934776,4469.2,4469.1,0.6989]
[1758038286586,2.3626763,4469.2,4469.1,0.6989]
[1758038286913,2.7814709,4469.2,4469.1,0.6989]
[1758038287614,3.26281064,4469.2,4469.1,0.6989]
[1758038287801,2.78157658,4469.2,4469.1,0.6999]
[1758038287997,3.26281064,4469.2,4469.1,0.6999]
[1758038288218,2.78157658,4469.2,4469.1,0.6999]
[1758038288709,0.54403967,4469.2,4469.1,0.6999]
[1758038288913,2.78157658,4469.2,4469.1,0.7007]
[1758038289219,0.54403967,4469.2,4469.1,0.7007]
[1758038289516,0.20950298,4469.2,4469.1,0.7007]
[1758038289705,3.79999346,4470.0,4469.1,0.7007]
[1758038289706,0.23619021,4470.9,4469.1,0.6175]
[1758038289904,0.81803123,4470.8,4470.0,12.88921013]
[1758038290140,1.0,4473.2,4470.4,0.792]
[1758038290280,1.0,4473.2,4470.9,0.792]
[1758038290499,2.23559305,4473.1,4471.1,3.0]
[1758038290844,3.23558133,4473.2,4471.8,2.23623596]
[1758038290998,2.23559029,4473.1,4471.8,2.69512276]
[1758038291198,1.0,4473.2,4471.8,2.69512276]
[1758038291199,2.23564229,4473.0,4471.8,20.19512276]
[1758038291405,2.23574366,4472.8,4471.8,17.9588868]
[1758038291604,2.23564669,4473.0,4471.8,18.19632864]
[1758038291841,2.23589693,4472.5,4471.8,22.07032864]
[1758038292009,2.23585482,4472.6,4471.8,22.07032864]
[1758038292214,2.23596587,4472.4,4471.8,14.5]
[1758038292548,2.24618596,4471.9,4471.8,3.872]
[1758038292903,0.01,4471.9,4471.8,3.872]
[1758038293104,2.24618596,4471.9,4471.8,3.872]
[1758038293606,0.01,4471.9,4471.8,3.872]
[1758038294439,2.24618596,4471.9,4471.8,3.872]
[1758038294639,0.01,4471.9,4471.8,3.872]
[1758038296363,2.24618596,4471.9,4471.8,3.872]
[1758038297210,0.01,4471.9,4471.8,3.872]
[1758038297746,2.24618596,4471.9,4471.8,3.872]
[1758038299254,2.24618596,4471.9,4471.8,3.8728]
[1758038299552,2.24538596,4471.9,4471.8,3.8728]
[1758038299875,0.0092,4471.9,4471.8,3.8728]
[1758038301668,2.24538596,4471.9,4471.8,3.8728]
[1758038301835,0.0092,4471.9,4471.8,3.8728]
[1758038302368,0.0092,4471.9,4471.8,0.0008]
[1758038302552,2.54978596,4471.9,4471.8,3.8618]
[1758038302955,2.54978596,4471.9,4471.8,0.0008]
[1758038303160,4.14951498,4471.9,4471.8,0.1068]
[1758038303673,4.14951498,4471.9,4471.8,0.0008]
[1758038304174,2.54978596,4471.9,4471.8,0.0008]
[1758038305731,0.0092,4471.9,4471.8,0.0008]
[1758038306591,0.0112,4471.9,4471.8,0.0008]
[1758038307283,0.0112,4471.9,4471.8,0.5008]
[1758038307667,0.0112,4471.9,4471.8,2.73703596]
[1758038309739,0.0112,4471.9,4471.8,0.5008]
[1758038310248,0.0112,4471.9,4471.8,2.73703596]
[1758038310445,0.0112,4471.9,4471.8,0.5008]
[1758038312889,0.0112,4471.9,4471.8,4.3538]
[1758038313489,0.0112,4471.9,4471.8,4.3528]
[1758038313866,0.0112,4471.9,4471.8,0.5008]
[1758038314168,0.0112,4471.9,4471.8,4.3518]
[1758038316855,0.0112,4471.9,4471.8,4.3468]
[1758038317104,0.0112,4471.9,4471.8,0.5008]
[1758038317105,0.3004,4471.9,4471.8,0.5008]
[1758038317393,3.46648596,4471.9,4471.8,4.3468]
[1758038317555,0.0112,4471.9,4471.8,0.5008]
[1758038317897,2.53658596,4471.9,4471.8,4.3488]
[1758038318068,0.7542,4471.9,4471.8,4.3488]
[1758038318691,0.0112,4471.9,4471.8,4.3488]
[1758038318990,1.0112,4471.9,4471.8,4.3488]
[1758038319189,1.22004916,4471.9,4471.8,4.3488]
[1758038320486,4.67533512,4471.9,4471.8,0.5008]
[1758038320690,4.80093499,4471.9,4471.8,0.354]
[1758038320901,2.23628597,4471.7,4471.6,1.719]
[1758038321108,2.570735,4471.7,4471.6,3.95]
[1758038321407,3.789835,4471.7,4471.6,3.95]
[1758038322495,3.789835,4471.7,4471.6,5.562]
[1758038322774,3.789835,4471.7,4470.9,1.719]
[1758038322775,5.23633598,4471.6,4470.9,1.719]
[1758038322979,2.23656565,4471.2,4471.0,3.843]
[1758038323180,3.7901351,4471.1,4471.0,3.843]
[1758038323710,3.79050483,4471.1,4471.0,3.843]
[1758038324216,3.79038464,4471.1,4471.0,3.843]
[1758038324574,2.23588612,4470.9,4470.8,1.719]
[1758038324782,3.78968469,4470.9,4470.8,5.562]
[1758038326685,2.73430474,4470.9,4470.8,5.562]
[1758038326996,2.44510474,4470.9,4470.8,5.562]
[1758038328388,0.20921862,4470.9,4470.8,5.562]
[1758038328578,2.44590474,4470.9,4470.8,5.562]
[1758038328979,2.44590474,4470.9,4470.8,5.8508]
[1758038329875,0.20921862,4470.9,4470.8,5.8508]
[1758038330074,0.1112,4471.0,4470.8,5.8508]
[1758038330384,0.3200635,4471.0,4470.8,6.3441]
[1758038330586,0.5067,4470.9,4470.8,6.2826]
[1758038330787,0.5067,4470.9,4470.8,5.8516]
[1758038331101,0.5067,4470.9,4470.8,6.2834]
[1758038332023,1e-08,4473.2,4471.6,0.792]
[1758038332340,1e-08,4473.2,4473.1,9.11605265]
[1758038332612,1e-08,4473.2,4473.1,14.70605265]
[1758038332998,1e-08,4473.2,4473.1,11.70605265]
[1758038333821,1e-08,4473.2,4473.1,5.59]
[1758038334415,2.23528622,4473.7,4473.1,5.589]
[1758038334615,0.3156,4473.2,4473.1,5.589]
[1758038334925,3.01603608,4473.2,4473.1,5.589]
[1758038335122,3.01603608,4473.2,4473.1,1.719]
[1758038335286,3.01603608,4473.2,4473.1,5.588]
[1758038335706,2.23623596,4471.8,4471.3,0.05]
[1758038335950,2.23623596,4471.8,4471.4,6.379]
[1758038336147,2.23623596,4471.8,4471.7,0.08]
[1758038336439,2.23623596,4471.8,4471.7,3.947]
[1758038337222,2.23623596,4471.8,4471.7,3.867]
[1758038339043,0.469,4472.7,4471.7,3.947]
[1758038339382,2.23603221,4472.3,4471.7,3.947]
[1758038339513,0.469,4473.0,4471.7,3.947]
[1758038339915,0.469,4473.2,4471.8,0.02236235]
[1758038340650,2.23583386,4472.7,4471.8,0.02236235]
[1758038340855,2.23584372,4472.6,4471.8,0.02236235]
[1758038341018,2.23589412,4472.5,4471.8,0.02316235]
[1758038341438,0.4648,4473.1,4471.8,0.02316235]
[1758038341439,0.4648,4473.1,4472.4,0.08]
[1758038341734,2.23583597,4472.6,4472.5,3.865]
[1758038342859,3.46313597,4472.6,4472.5,3.865]
[1758038343176,2.34708596,4472.5,4472.4,1.719]
[1758038343322,2.34708596,4472.5,4472.4,5.58]
[1758038343523,3.57438596,4472.5,4472.4,5.58]
[1758038343959,3.10958596,4472.5,4472.4,5.58]
[1758038344164,2.64058596,4472.5,4472.4,5.58]
[1758038344366,3.57438596,4472.5,4472.4,5.58]
[1758038344765,3.57438596,4472.5,4471.8,0.0008]
[1758038344962,2.23613595,4472.0,4471.9,3.861]
[1758038345153,2.64083595,4472.0,4471.9,3.861]
[1758038345324,3.57463595,4472.0,4471.9,3.861]
[1758038346138,2.64083595,4472.0,4471.9,3.861]
[1758038347570,3.10983595,4472.0,4471.9,3.861]
[1758038348478,2.23618596,4471.9,4471.8,0.0008]
[1758038348647,2.23618596,4471.9,4471.8,3.8578]
[1758038349332,2.52968596,4471.9,4471.8,3.8578]
[1758038349567,3.46348596,4471.9,4471.8,3.8578]
[1758038349768,3.46268596,4471.9,4471.8,3.8578]
[1758038349974,3.46268596,4471.9,4471.8,0.0008]
[1758038350181,3.46268596,4471.9,4471.8,3.8568]
[1758038351147,2.23584483,4472.6,4471.8,3.8568]
[1758038351148,2.23505198,4474.2,4471.8,6.19558792]
[1758038351344,2.23585627,4472.6,4471.8,7.07312557]
[1758038351578,2.23571302,4472.9,4471.8,7.07313342]
[1758038351781,3.0,4473.7,4471.9,2.23618114]
[1758038351959,2.23580472,4472.7,4472.0,0.02236135]
[1758038352157,4.07951863,4473.8,4472.0,0.02236135]
[1758038352158,3.0,4474.3,4472.1,4.325]
[1758038352371,2.23583666,4472.6,4472.1,4.325]
[1758038352560,2.23579926,4472.7,4472.1,4.325]
[1758038352765,2.23574399,4472.8,4472.1,4.325]
[1758038352959,2.23570109,4472.9,4472.1,6.5610843]
[1758038353185,2.23538616,4473.5,4472.1,4.325]
[1758038353486,2.235764,4472.8,4472.1,4.325]
[1758038353682,2.235764,4472.8,4472.1,6.56108586]
[1758038353863,2.235764,4472.8,4472.1,4.335]
[1758038354262,0.9338,4473.4,4472.1,4.3405]
[1758038354263,2.2354861,4473.3,4472.1,4.3405]
[1758038354469,2.23595433,4472.4,4472.1,3.8715]
[1758038354784,2.23585902,4472.6,4472.1,3.8715]
[1758038355399,2.23578402,4472.8,4472.1,0.0155]
[1758038355569,2.23576181,4472.8,4472.2,3.852]
[1758038355754,2.23569144,4472.9,4472.2,3.852]
[1758038356100,0.4648,4473.1,4472.2,3.87436035]
[1758038356602,2.23569138,4472.9,4472.2,3.87436035]
[1758038356758,2.23569138,4472.9,4472.2,6.11038896]
[1758038357093,2.2354861,4473.3,4472.2,6.08799313]
[1758038357387,2.2355958,4473.1,4472.4,2.23588697]
[1758038357687,2.23548349,4473.4,4473.0,0.2917]
[1758038357896,2.23550501,4473.3,4473.1,3.849]
[1758038358102,0.9338,4473.8,4473.1,3.849]
[1758038358319,2.23553608,4473.2,4473.1,3.849]
[1758038358525,2.52903608,4473.2,4473.1,3.849]
[1758038358672,2.23563603,4473.0,4472.9,1.718]
[1758038358878,2.23563603,4473.0,4472.9,5.566]
[1758038358879,3.46293603,4473.0,4472.9,5.566]
[1758038361327,2.23563603,4473.0,4472.9,5.566]
[1758038361988,2.52913603,4473.0,4472.9,5.566]
[1758038362320,3.46293603,4473.0,4472.9,5.566]
[1758038362522,3.46293603,4473.0,4472.9,5.5668]
[1758038364021,2.73826651,4473.0,4472.9,5.5668]
[1758038364221,2.44476651,4473.0,4472.9,5.5668]
[1758038364527,2.73326651,4473.0,4472.9,5.5668]
[1758038365511,3.65676651,4473.0,4472.9,5.5668]
[1758038365914,3.65676651,4473.0,4472.9,5.5598]
[1758038366111,3.78233052,4473.0,4472.9,5.5598]
[1758038366822,3.78233052,4473.0,4472.9,5.5653]
[1758038369429,3.78233052,4473.0,4472.9,5.5633]
[1758038370521,3.78254073,4473.0,4472.9,5.5633]
[1758038372038,3.78254073,4473.0,4472.9,1.7243]
[1758038372194,3.78254073,4473.0,4472.9,5.5603]
[1758038372799,3.29914073,4473.0,4472.9,5.5603]
[1758038373128,2.85904073,4473.0,4472.9,5.5603]
[1758038373428,3.29914073,4473.0,4472.9,5.5603]
[1758038373597,2.85904073,4473.0,4472.9,1.7243]
[1758038373793,2.85904073,4473.0,4472.9,5.5563]
[1758038374189,2.85904649,4473.0,4472.9,5.5563]
[1758038374425,2.57054649,4473.0,4472.9,5.5563]
[1758038374731,2.85904649,4473.0,4472.9,5.5563]
[1758038374913,2.64972745,4473.0,4472.9,5.5563]
[1758038375222,3.78173956,4473.0,4472.9,5.5563]
[1758038376219,3.29833956,4473.0,4472.9,5.5563]
[1758038376496,2.85823956,4473.0,4472.9,1.7243]
[1758038376694,2.85823956,4473.0,4472.9,5.5543]
[1758038380631,2.56973956,4473.0,4472.9,5.8682]
[1758038381344,2.44494814,4473.0,4472.9,6.7657]
[1758038382126,2.23559935,4473.1,4472.9,6.7657]
[1758038382342,2.23558956,4473.1,4472.9,6.7657]
[1758038382545,2.23563603,4473.0,4472.9,6.7657]
[1758038382744,2.23559691,4473.1,4472.9,6.7657]
[1758038383049,2.23563603,4473.0,4472.9,6.2967]
[1758038383247,2.23559525,4473.1,4472.9,6.2967]
[1758038383549,2.23563603,4473.0,4472.9,6.2967]
[1758038383846,2.23563603,4473.0,4472.9,5.8682]
[1758038386355,3.17372365,4473.0,4472.9,5.5443]
[1758038386525,3.78281847,4473.0,4472.9,5.5443]
[1758038387049,3.78282299,4473.0,4472.9,5.5443]
[1758038387453,8.87771736,4473.0,4472.9,5.5443]
[1758038388550,8.87776098,4473.0,4472.9,5.5443]
[1758038391152,7.95426098,4473.0,4472.9,5.5443]
[1758038391354,7.66576098,4473.0,4472.9,5.8582]
[1758038391555,2.44516727,4473.0,4472.9,5.8582]
[1758038392259,2.44516727,4473.0,4472.9,2.0382]
[1758038392438,2.73366727,4473.0,4472.9,5.5393]
[1758038392626,2.57088158,4473.0,4472.9,5.5393]
[1758038392821,0.33524555,4473.0,4472.9,5.8532]
[1758038393026,8.53499437,4473.8,4472.9,5.8532]
[1758038393027,0.81802632,4473.7,4472.9,6.7507]
[1758038393356,5.09489437,4473.5,4472.9,6.7507]
[1758038393552,2.23563603,4473.0,4472.9,5.8532]
[1758038393757,2.23559027,4473.1,4472.9,6.7507]
[1758038394158,2.23563603,4473.0,4472.9,6.7507]
[1758038395033,2.23563603,4473.0,4472.9,6.3222]
[1758038395234,0.002,4473.9,4472.9,6.7816]
[1758038395459,0.1112,4473.0,4472.9,6.7816]
[1758038396168,2.34683603,4473.0,4472.9,6.3197]
[1758038396366,2.34683603,4473.0,4472.9,5.8532]
[1758038396931,0.1112,4473.0,4472.9,6.3151]
[1758038398868,0.1112,4473.0,4472.9,21.2816]
[1758038399175,2.34683603,4473.0,4472.9,21.2816]
[1758038399501,0.1112,4473.0,4472.9,21.2816]
[1758038400691,0.1112,4473.0,4472.9,5.8524]
[1758038401375,0.1112,4473.0,4472.9,6.7532]
[1758038401540,0.20941599,4473.3,4472.9,6.7532]
[1758038401745,0.20941599,4473.3,4473.0,0.92315636]
[1758038402273,0.002,4473.9,4473.2,0.2965]
[1758038402274,0.20941599,4473.8,4473.2,0.2965]
[1758038402474,0.20941599,4473.8,4473.3,1.04288486]
[1758038402679,0.20932724,4473.8,4473.7,0.2965]
[1758038403180,0.24,4473.8,4473.7,4.1055]
[1758038403390,0.24,4473.8,4473.7,3.402]
[1758038403806,0.24,4473.8,4473.7,17.902]
[1758038403962,0.24,4473.8,4473.7,18.5894]
[1758038405386,0.24,4473.8,4473.7,18.371]
[1758038405587,0.002,4473.9,4473.7,18.5894]
[1758038405757,0.002,4473.9,4473.8,2.42775236]
[1758038405958,0.002,4473.9,4473.8,5.43263626]
[1758038406188,0.002,4473.9,4473.8,4.72913626]
[1758038406388,0.002,4473.9,4473.8,2.2755]
[1758038406792,0.002,4473.9,4473.8,4.526]
[1758038406793,3.4563863,4473.9,4473.8,4.526]
[1758038407111,2.9979863,4473.9,4473.8,4.526]
[1758038407252,0.002,4473.9,4473.8,4.526]
[1758038407655,0.002,4473.9,4473.8,4.8225]
[1758038407857,0.002,4473.9,4473.8,5.2915]
[1758038408268,0.002,4473.9,4473.8,5.7915]
[1758038408790,0.002,4473.9,4473.8,8.24513626]
[1758038409088,0.002,4473.9,4473.8,9.03713626]
[1758038409390,0.002,4473.9,4473.8,21.3019]
[1758038409552,0.2905,4473.9,4473.8,15.718]
[1758038409753,0.2905,4473.9,4473.8,19.527]
[1758038409988,0.002,4473.9,4473.8,19.8235]
[1758038410991,2.2371863,4473.9,4473.8,19.527]
[1758038411304,3.4563863,4473.9,4473.8,5.028]
[1758038411467,3.5675863,4473.9,4473.8,5.028]
[1758038412103,3.5675863,4473.9,4473.8,1.218]
[1758038412308,3.5675863,4473.9,4473.8,5.029]
[1758038413314,3.5675863,4473.9,4473.8,4.527]
[1758038413315,4.85655217,4473.9,4473.8,4.527]
[1758038414912,3.66528848,4473.9,4473.8,4.527]
[1758038415095,0.21090218,4473.9,4473.8,4.527]
[1758038415410,0.002,4473.9,4473.8,4.527]
[1758038415909,2.2371863,4473.9,4473.8,4.527]
[1758038416088,3.4563863,4473.9,4473.8,4.527]
[1758038416291,9.77526994,4473.9,4473.8,4.526]
[1758038416612,3.66530895,4473.9,4473.8,4.526]
[1758038417317,2.73460895,4473.9,4473.8,4.526]
[1758038417531,0.49942265,4473.9,4473.8,4.526]
[1758038417819,0.002,4473.9,4473.8,5.6145]
[1758038417978,0.002,4473.9,4473.8,6.0835]
[1758038418384,0.002,4473.9,4473.8,15.5145]
[1758038418619,0.002,4473.9,4473.8,19.8265]
[1758038419004,0.002,4473.9,4473.8,19.53]
[1758038419208,3.4563863,4473.9,4473.8,19.53]
[1758038419525,3.4563863,4473.9,4473.8,1.219]
[1758038419695,3.4563863,4473.9,4473.8,0.719]
[1758038419899,3.6653646,4473.9,4473.8,2.815]
[1758038420087,4.86640667,4473.9,4473.8,2.815]
[1758038420516,9.77532559,4473.9,4473.8,0.001]
[1758038421129,2.7346646,4473.9,4473.8,0.001]
[1758038421293,2.4461646,4473.9,4473.8,0.001]
[1758038421493,0.2109783,4473.9,4473.8,0.001]
[1758038421720,0.2109783,4473.9,4473.8,0.31985236]
[1758038421721,0.002,4473.9,4473.8,0.31985236]
[1758038421905,0.002,4473.9,4473.8,1.00725236]
[1758038422106,0.002,4473.9,4473.8,7.03448862]
[1758038422398,0.002,4473.9,4473.8,7.01213626]
[1758038422595,0.002,4473.9,4473.8,21.51213626]
[1758038423222,0.002,4473.9,4473.8,19.3881]
[1758038423420,0.002,4473.9,4473.8,21.62333626]
[1758038423624,0.002,4473.9,4473.8,19.8881]